fUST/lending_fUST_20260115
["ID","MTS","AMOUNT","RATE_DAILY","PERIOD"]
[402029971,1768487464293,-522.94,0.00022191,2]
[402029972,1768487464305,-660.52,0.00022191,2]
[402029973,1768487464317,-510.6,0.00022191,2]
[402029974,1768487464326,-500.0,0.00022191,2]
[402029975,1768487464337,-500.0,0.00022191,2]
[402029976,1768487464347,-500.0,0.00022191,2]
[402029977,1768487464357,-766.8,0.00022191,2]
[402029978,1768487464367,-500.0,0.00022191,2]
[402029979,1768487464377,-648.96,0.00022191,2]
[402029980,1768487464386,-279.59,0.00022191,2]
[402029981,1768487464396,-500.0,0.00022191,2]
[402029982,1768487464405,-517.62376133,0.00022191,2]
[402029983,1768487464414,-500.0,0.00022191,2]
[402029984,1768487464423,-500.0,0.00022191,2]
[402029985,1768487464432,-500.0,0.00022191,2]
[402029986,1768487464441,-666.47,0.00022191,2]
[402029987,1768487464451,-500.0,0.00022191,2]
[402029988,1768487464461,-627.91,0.00022191,2]
[402029989,1768487464471,-500.0,0.00022191,2]
[402029990,1768487464480,-500.0,0.00022191,2]
[402029991,1768487464490,-500.0,0.00022191,2]
[402029992,1768487464499,-1765.87,0.00022191,2]
[402029993,1768487464508,-500.0,0.00022191,2]
[402029994,1768487464518,-965.72,0.00022191,2]
[402029995,1768487464527,-1465.07,0.00022191,2]
[402029996,1768487464536,-500.0,0.00022191,2]
[402029997,1768487464545,-500.0,0.00022191,2]
[402029998,1768487464557,-424.23125823,0.00022191,2]
[402029999,1768487464567,-500.0,0.00022191,2]
[402030000,1768487464576,-500.0,0.00022191,2]
[402030001,1768487464585,-500.0,0.00022191,2]
[402030002,1768487464595,-1130.92,0.00022191,2]
[402030003,1768487464605,-500.0,0.00022191,2]
[402030004,1768487464614,-526.5,0.00022191,2]
[402030005,1768487464624,-500.0,0.00022191,2]
[402030006,1768487464634,-500.0,0.00022191,2]
[402030007,1768487464643,-1697.5,0.00022191,2]
[402030008,1768487464653,-526.35,0.00022191,2]
[402030009,1768487464663,-545.53089482,0.00022191,2]
[402030010,1768487464672,-500.0,0.00022191,2]
[402030011,1768487464681,-500.0,0.00022191,2]
[402030012,1768487464690,-2715.18,0.00022191,2]
[402030013,1768487464700,-840.57,0.00022191,2]
[402030014,1768487464709,-726.12,0.00022191,2]
[402030015,1768487464718,-500.0,0.00022191,2]
[402030016,1768487464727,-500.0,0.00022191,2]
[402030017,1768487464737,-276.34541565,0.00022191,2]
[402030018,1768487464747,-500.0,0.00022191,2]
[402030019,1768487464756,-1772.2,0.00022191,2]
[402030020,1768487464766,-500.0,0.00022191,2]
[402030021,1768487464776,-500.0,0.00022191,2]
[402030022,1768487464786,-517.8,0.00022191,2]
[402030023,1768487464796,-500.0,0.00022191,2]
[402030024,1768487464810,-500.0,0.00022191,2]
[402030025,1768487464970,-500.0,0.00022191,2]
[402030026,1768487464986,-512.00873596,0.00022191,2]
[402030027,1768487464995,-500.0,0.00022191,2]
[402030028,1768487465006,-500.0,0.00022191,2]
[402030029,1768487465017,-589.94,0.00022191,2]
[402030030,1768487465027,-1786.4,0.00022191,2]
[402030031,1768487465036,-500.0,0.00022191,2]
[402030032,1768487465046,-500.0,0.00022191,2]
[402030033,1768487465061,-854.81,0.00022191,2]
[402030034,1768487465071,-500.0,0.00022191,2]
[402030035,1768487465081,-500.0,0.00022191,2]
[402030036,1768487465091,-500.0,0.00022191,2]
[402030037,1768487465101,-500.0,0.00022191,2]
[402030038,1768487465111,-500.0,0.00022191,2]
[402030039,1768487465121,-782.57,0.00022191,2]
[402030040,1768487465130,-500.0,0.00022191,2]
[402030041,1768487465139,-661.81,0.00022191,2]
[402030042,1768487465148,-937.88,0.00022191,2]
[402030043,1768487465159,-725.64,0.00022191,2]
[402030044,1768487465169,-1083.22,0.00022191,2]
[402030045,1768487465179,-500.0,0.00022191,2]
[402030046,1768487465188,-1394.53,0.00022191,2]
[402030047,1768487465198,-2723.97,0.00022191,2]
[402030048,1768487465208,-881.61,0.00022191,2]
[402030049,1768487465217,-1470.16,0.00022191,2]
[402030050,1768487465226,-500.0,0.00022191,2]
[402030051,1768487465238,-652.0,0.00022191,2]
[402030052,1768487465249,-500.0,0.00022191,2]
[402030053,1768487465258,-531.23245037,0.00022191,2]
[402030054,1768487465267,-602.56,0.00022191,2]
[402030055,1768487465278,-500.0,0.00022191,2]
[402030056,1768487465288,-1073.72,0.00022191,2]
[402030057,1768487465298,-670.48,0.00022191,2]
[402030058,1768487465311,-500.0,0.00022191,2]
[402030059,1768487465321,-1114.63,0.00022191,2]
[402030060,1768487465331,-795.08,0.00022191,2]
[402030061,1768487465340,-1353.51,0.00022191,2]
[402030062,1768487465350,-500.0,0.00022191,2]
[402030063,1768487465359,-1093.41,0.00022191,2]
[402030064,1768487465369,-500.0,0.00022191,2]
[402030065,1768487465378,-500.0,0.00022191,2]
[402030066,1768487465387,-500.0,0.00022191,2]
[402030067,1768487465396,-500.0,0.00022191,2]
[402030068,1768487465405,-733.66,0.00022191,2]
[402030069,1768487465415,-578.32090202,0.00022191,2]
[402030070,1768487465425,-592.35,0.00022191,2]
[402030071,1768487465434,-725.46,0.00022191,2]
[402030072,1768487465443,-3008.55,0.00022191,2]
[402030073,1768487465452,-500.0,0.00022191,2]
[402030074,1768487465462,-586.6,0.00022191,2]
[402030075,1768487465473,-500.0,0.00022191,2]
[402030076,1768487465482,-1323.38,0.00022191,2]
[402030077,1768487465492,-500.0,0.00022191,2]
[402030078,1768487465501,-304.60226963,0.00022191,2]
[402030079,1768487465510,-500.0,0.00022191,2]
[402030080,1768487465520,-1210.62,0.00022191,2]
[402030081,1768487465529,-500.0,0.00022191,2]
[402030082,1768487465539,-500.0,0.00022191,2]
[402030083,1768487465548,-500.0,0.00022191,2]
[402030084,1768487465561,-500.0,0.00022191,2]
[402030085,1768487465570,-500.0,0.00022191,2]
[402030086,1768487465580,-750.39,0.00022191,2]
[402030087,1768487465590,-500.0,0.00022191,2]
[402030088,1768487465600,-500.0,0.00022191,2]
[402030089,1768487465610,-500.0,0.00022191,2]
[402030090,1768487465620,-500.0,0.00022191,2]
[402030091,1768487465629,-553.23,0.00022191,2]
[402030092,1768487465639,-1482.63,0.00022191,2]
[402030093,1768487465649,-500.0,0.00022191,2]
[402030094,1768487465658,-500.0,0.00022191,2]
[402030095,1768487465668,-536.25,0.00022191,2]
[402030096,1768487465677,-500.0,0.00022191,2]
[402030097,1768487465686,-500.0,0.00022191,2]
[402030098,1768487465695,-500.0,0.00022191,2]
[402030099,1768487465705,-756.43,0.00022191,2]
[402030100,1768487465715,-500.0,0.00022191,2]
[402030101,1768487465724,-500.0,0.00022191,2]
[402030102,1768487465734,-500.0,0.00022191,2]
[402030103,1768487465743,-500.0,0.00022191,2]
[402030104,1768487465753,-500.0,0.00022191,2]
[402030105,1768487465763,-1685.75,0.00022191,2]
[402030106,1768487465772,-500.0,0.00022191,2]
[402030107,1768487465782,-500.0,0.00022191,2]
[402030108,1768487465792,-500.0,0.00022191,2]
[402030109,1768487465801,-2008.87,0.00022191,2]
[402030110,1768487465815,-500.0,0.00022191,2]
[402030111,1768487465825,-500.0,0.00022191,2]
[402030112,1768487465834,-500.0,0.00022191,2]
[402030113,1768487465844,-500.0,0.00022191,2]
[402030114,1768487465853,-500.0,0.00022191,2]
[402030115,1768487465862,-481.21891097,0.00022191,2]
[402030116,1768487465872,-500.0,0.00022191,2]
[402030117,1768487465881,-530.30936307,0.00022191,2]
[402030118,1768487465891,-500.0,0.00022191,2]
[402030119,1768487465901,-1116.83,0.00022191,2]
[402030120,1768487465910,-1086.09,0.00022191,2]
[402030121,1768487465919,-1803.33,0.00022191,2]
[402030122,1768487465929,-702.6,0.00022191,2]
[402030123,1768487465938,-823.85,0.00022191,2]
[402030124,1768487465947,-500.0,0.00022191,2]
[402030125,1768487465956,-500.0,0.00022191,2]
[402030126,1768487465965,-500.0,0.00022191,2]
[402030127,1768487465974,-500.0,0.00022191,2]
[402030128,1768487465983,-500.0,0.00022191,2]
[402030129,1768487465992,-1893.75,0.00022191,2]
[402030130,1768487466002,-187.21736581,0.00022191,2]
[402030131,1768487466011,-500.0,0.00022191,2]
[402030132,1768487466021,-500.0,0.00022191,2]
[402030133,1768487466030,-500.0,0.00022191,2]
[402030134,1768487466040,-1226.97,0.00022191,2]
[402030135,1768487466049,-500.0,0.00022191,2]
[402030136,1768487466061,-500.0,0.00022191,2]
[402030137,1768487466071,-881.98,0.00022191,2]
[402030138,1768487466080,-500.0,0.00022191,2]
[402030139,1768487466090,-526.73,0.00022191,2]
[402030140,1768487466100,-991.82,0.00022191,2]
[402030141,1768487466109,-500.0,0.00022191,2]
[402030142,1768487466119,-500.0,0.00022191,2]
[402030143,1768487466128,-500.0,0.00022191,2]
[402030144,1768487466137,-500.0,0.00022191,2]
[402030145,1768487466147,-1273.1,0.00022191,2]
[402030146,1768487466157,-633.46,0.00022191,2]
[402030147,1768487466168,-1556.57,0.00022191,2]
[402030148,1768487466177,-500.0,0.00022191,2]
[402030149,1768487466186,-500.0,0.00022191,2]
[402030150,1768487466197,-1773.57,0.00022191,2]
[402030151,1768487466207,-500.0,0.00022191,2]
[402030152,1768487466217,-2239.48,0.00022191,2]
[402030153,1768487466226,-426.85620982,0.00022191,2]
[402030154,1768487466237,-500.0,0.00022191,2]
[402030155,1768487466249,-500.0,0.00022191,2]
[402030156,1768487466259,-500.0,0.00022191,2]
[402030157,1768487466269,-2169.19,0.00022191,2]
[402030158,1768487466280,-500.0,0.00022191,2]
[402030159,1768487466291,-1934.33,0.00022191,2]
[402030160,1768487466301,-500.0,0.00022191,2]
[402030161,1768487466314,-546.27,0.00022191,2]
[402030162,1768487466325,-504.43172634,0.00022191,2]
[402030163,1768487466334,-500.0,0.00022191,2]
[402030164,1768487466343,-500.0,0.00022191,2]
[402030165,1768487466352,-500.0,0.00022191,2]
[402030166,1768487466361,-500.0,0.00022191,2]
[402030167,1768487466371,-500.0,0.00022191,2]
[402030168,1768487466380,-500.0,0.00022191,2]
[402030169,1768487466389,-2336.87,0.00022191,2]
[402030170,1768487466399,-929.89,0.00022191,2]
[402030171,1768487466408,-500.0,0.00022191,2]
[402030172,1768487466417,-500.0,0.00022191,2]
[402030173,1768487466426,-500.0,0.00022191,2]
[402030174,1768487466435,-500.0,0.00022191,2]
[402030175,1768487466444,-500.0,0.00022191,2]
[402030176,1768487466453,-500.0,0.00022191,2]
[402030177,1768487466463,-500.0,0.00022191,2]
[402030178,1768487466473,-1009.61,0.00022191,2]
[402030179,1768487466482,-687.14,0.00022191,2]
[402030180,1768487466492,-734.12,0.00022191,2]
[402030181,1768487466501,-500.0,0.00022191,2]
[402030182,1768487466511,-773.67,0.00022191,2]
[402030183,1768487466520,-500.0,0.00022191,2]
[402030184,1768487466529,-513.82,0.00022191,2]
[402030185,1768487466539,-1103.55,0.00022191,2]
[402030186,1768487466548,-1005.25,0.00022191,2]
[402030187,1768487466560,-1116.14,0.00022191,2]
[402030188,1768487466569,-500.0,0.00022191,2]
[402030189,1768487466578,-500.0,0.00022191,2]
[402030190,1768487466587,-1999.12,0.00022191,2]
[402030191,1768487466596,-500.0,0.00022191,2]
[402030192,1768487466605,-500.0,0.00022191,2]
[402030193,1768487466615,-500.0,0.00022191,2]
[402030194,1768487466625,-500.0,0.00022191,2]
[402030195,1768487466635,-500.0,0.00022191,2]
[402030196,1768487466644,-1283.41,0.00022191,2]
[402030197,1768487466653,-549.87,0.00022191,2]
[402030198,1768487466663,-500.0,0.00022191,2]
[402030199,1768487466672,-657.58,0.00022191,2]
[402030200,1768487466681,-500.0,0.00022191,2]
[402030201,1768487466690,-500.0,0.00022191,2]
[402030202,1768487466700,-769.55,0.00022191,2]
[402030203,1768487466710,-859.92,0.00022191,2]
[402030204,1768487466720,-1274.55,0.00022191,2]
[402030205,1768487466729,-755.36,0.00022191,2]
[402030206,1768487466739,-281.74476103,0.00022191,2]
[402030207,1768487466748,-548.51,0.00022191,2]
[402030208,1768487466757,-500.0,0.00022191,2]
[402030209,1768487466767,-500.0,0.00022191,2]
[402030210,1768487466776,-500.0,0.00022191,2]
[402030211,1768487466786,-577.77,0.00022191,2]
[402030212,1768487466795,-500.0,0.00022191,2]
[402030213,1768487466804,-1171.54,0.00022191,2]
[402030214,1768487466816,-1735.71,0.00022191,2]
[402030215,1768487466826,-856.53,0.00022191,2]
[402030216,1768487466836,-500.0,0.00022191,2]
[402030217,1768487466845,-500.0,0.00022191,2]
[402030218,1768487466855,-500.0,0.00022191,2]
[402030219,1768487466864,-500.0,0.00022191,2]
[402030220,1768487466873,-885.89,0.00022191,2]
[402030221,1768487466882,-500.0,0.00022191,2]
[402030222,1768487466891,-500.0,0.00022191,2]
[402030223,1768487466900,-1566.67,0.00022191,2]
[402030224,1768487466910,-500.0,0.00022191,2]
[402030225,1768487466919,-1875.79,0.00022191,2]
[402030226,1768487466929,-500.0,0.00022191,2]
[402030227,1768487466938,-500.0,0.00022191,2]
[402030228,1768487466947,-500.0,0.00022191,2]
[402030229,1768487466956,-1582.37,0.00022191,2]
[402030230,1768487466965,-641.44,0.00022191,2]
[402030231,1768487466975,-1167.14,0.00022191,2]
[402030232,1768487466984,-717.39,0.00022191,2]
[402030233,1768487466993,-278.64214785,0.00022191,2]
[402030234,1768487467003,-1327.2,0.00022191,2]
[402030235,1768487467012,-496.0577397,0.00022191,2]
[402030236,1768487467021,-550.33,0.00022191,2]
[402030237,1768487467030,-500.0,0.00022191,2]
[402030238,1768487467040,-500.0,0.00022191,2]
[402030239,1768487467049,-500.0,0.00022191,2]
[402030240,1768487467060,-536.0,0.00022191,2]
[402030241,1768487467069,-893.0,0.00022191,2]
[402030242,1768487467079,-1093.12,0.00022191,2]
[402030243,1768487467088,-500.0,0.00022191,2]
[402030244,1768487467097,-1111.22,0.00022191,2]
[402030245,1768487467107,-500.0,0.00022191,2]
[402030246,1768487467117,-500.0,0.00022191,2]
[402030247,1768487467127,-500.0,0.00022191,2]
[402030248,1768487467136,-500.0,0.00022191,2]
[402030249,1768487467145,-974.62,0.00022191,2]
[402030250,1768487467155,-548.4,0.00022191,2]
[402030251,1768487467164,-500.0,0.00022191,2]
[402030252,1768487467175,-1254.11,0.00022191,2]
[402030253,1768487467185,-500.0,0.00022191,2]
[402030254,1768487467194,-500.0,0.00022191,2]
[402030255,1768487467204,-500.0,0.00022191,2]
[402030256,1768487467214,-588.45,0.00022191,2]
[402030257,1768487467224,-500.0,0.00022191,2]
[402030258,1768487467234,-590.1,0.00022191,2]
[402030259,1768487467251,-500.0,0.00022191,2]
[402030260,1768487467260,-1693.22,0.00022191,2]
[402030261,1768487467270,-821.11,0.00022191,2]
[402030262,1768487467282,-500.0,0.00022191,2]
[402030263,1768487467292,-500.0,0.00022191,2]
[402030264,1768487467302,-1106.41,0.00022191,2]
[402030265,1768487467314,-500.0,0.00022191,2]
[402030266,1768487467324,-500.0,0.00022191,2]
[402030267,1768487467333,-875.29,0.00022191,2]
[402030268,1768487467343,-703.12,0.00022191,2]
[402030269,1768487467353,-500.0,0.00022191,2]
[402030270,1768487467362,-2170.69,0.00022191,2]
[402030271,1768487467372,-500.0,0.00022191,2]
[402030272,1768487467381,-1209.18,0.00022191,2]
[402030273,1768487467391,-1318.35,0.00022191,2]
[402030274,1768487467400,-500.0,0.00022191,2]
[402030275,1768487467409,-500.0,0.00022191,2]
[402030276,1768487467418,-548.67,0.00022191,2]
[402030277,1768487467428,-500.0,0.00022191,2]
[402030278,1768487467437,-500.0,0.00022191,2]
[402030279,1768487467446,-629.01,0.00022191,2]
[402030280,1768487467602,-500.0,0.00022191,2]
[402030281,1768487467611,-500.0,0.00022191,2]
[402030282,1768487467620,-500.0,0.00022191,2]
[402030283,1768487467629,-500.0,0.00022191,2]
[402030284,1768487467639,-1139.79,0.00022191,2]
[402030285,1768487467650,-500.0,0.00022191,2]
[402030286,1768487467660,-500.0,0.00022191,2]
[402030287,1768487467669,-931.03,0.00022191,2]
[402030288,1768487467679,-500.0,0.00022191,2]
[402030289,1768487467689,-500.0,0.00022191,2]
[402030290,1768487467698,-500.0,0.00022191,2]
[402030291,1768487467707,-500.0,0.00022191,2]
[402030292,1768487467716,-500.0,0.00022191,2]
[402030293,1768487467725,-1048.28,0.00022191,2]
[402030294,1768487467734,-2170.59,0.00022191,2]
[402030295,1768487467743,-500.0,0.00022191,2]
[402030296,1768487467752,-500.0,0.00022191,2]
[402030297,1768487467761,-500.0,0.00022191,2]
[402030298,1768487467770,-500.0,0.00022191,2]
[402030299,1768487467780,-500.0,0.00022191,2]
[402030300,1768487467789,-500.0,0.00022191,2]
[402030301,1768487467799,-1912.16,0.00022191,2]
[402030302,1768487467811,-500.0,0.00022191,2]
[402030303,1768487467820,-500.0,0.00022191,2]
[402030304,1768487467829,-500.0,0.00022191,2]
[402030305,1768487467839,-500.0,0.00022191,2]
[402030306,1768487467848,-500.0,0.00022191,2]
[402030307,1768487467859,-500.0,0.00022191,2]
[402030308,1768487467869,-500.0,0.00022191,2]
[402030309,1768487467878,-974.07,0.00022191,2]
[402030310,1768487467887,-1480.33,0.00022191,2]
[402030311,1768487467897,-500.0,0.00022191,2]
[402030312,1768487467906,-526.22441512,0.00022191,2]
[402030313,1768487467916,-500.0,0.00022191,2]
[402030314,1768487467925,-500.0,0.00022191,2]
[402030315,1768487467934,-531.32,0.00022191,2]
[402030316,1768487467944,-500.0,0.00022191,2]
[402030317,1768487467954,-1024.21,0.00022191,2]
[402030318,1768487467963,-546.92,0.00022191,2]
[402030319,1768487467972,-500.0,0.00022191,2]
[402030320,1768487467981,-500.0,0.00022191,2]
[402030321,1768487467990,-521.85,0.00022191,2]
[402030322,1768487468000,-500.0,0.00022191,2]
[402030323,1768487468009,-500.0,0.00022191,2]
[402030324,1768487468019,-500.0,0.00022191,2]
[402030325,1768487468029,-785.17,0.00022191,2]
[402030326,1768487468039,-500.0,0.00022191,2]
[402030327,1768487468048,-500.0,0.00022191,2]
[402030328,1768487468061,-2192.63,0.00022191,2]
[402030329,1768487468070,-500.0,0.00022191,2]
[402030330,1768487468079,-500.0,0.00022191,2]
[402030331,1768487468088,-1028.48,0.00022191,2]
[402030332,1768487468098,-500.0,0.00022191,2]
[402030333,1768487468107,-671.58,0.00022191,2]
[402030334,1768487468117,-500.0,0.00022191,2]
[402030335,1768487468126,-500.0,0.00022191,2]
[402030336,1768487468135,-500.0,0.00022191,2]
[402030337,1768487468145,-629.12,0.00022191,2]
[402030338,1768487468154,-566.3,0.00022191,2]
[402030339,1768487468163,-500.0,0.00022191,2]
[402030340,1768487468172,-500.0,0.00022191,2]
[402030341,1768487468181,-500.0,0.00022191,2]
[402030342,1768487468190,-500.0,0.00022191,2]
[402030343,1768487468200,-500.0,0.00022191,2]
[402030344,1768487468209,-1347.85,0.00022191,2]
[402030345,1768487468218,-500.0,0.00022191,2]
[402030346,1768487468228,-570.17,0.00022191,2]
[402030347,1768487468237,-500.0,0.00022191,2]
[402030348,1768487468249,-500.0,0.00022191,2]
[402030349,1768487468258,-500.0,0.00022191,2]
[402030350,1768487468268,-500.0,0.00022191,2]
[402030351,1768487468277,-500.0,0.00022191,2]
[402030352,1768487468286,-500.0,0.00022191,2]
[402030353,1768487468297,-834.07,0.00022191,2]
[402030354,1768487468309,-519.0,0.00022191,2]
[402030355,1768487468319,-500.0,0.00022191,2]
[402030356,1768487468329,-801.47,0.00022191,2]
[402030357,1768487468339,-1489.31,0.00022191,2]
[402030358,1768487468349,-500.0,0.00022191,2]
[402030359,1768487468359,-500.0,0.00022191,2]
[402030360,1768487468368,-1784.56,0.00022191,2]
[402030361,1768487468377,-520.07250086,0.00022191,2]
[402030362,1768487468387,-500.0,0.00022191,2]
[402030363,1768487468396,-500.0,0.00022191,2]
[402030364,1768487468405,-500.0,0.00022191,2]
[402030365,1768487468415,-500.0,0.00022191,2]
[402030366,1768487468424,-500.0,0.00022191,2]
[402030367,1768487468433,-500.0,0.00022191,2]
[402030368,1768487468442,-500.0,0.00022191,2]
[402030369,1768487468451,-642.34,0.00022191,2]
[402030370,1768487468459,-875.6,0.00022191,2]
[402030371,1768487468468,-500.0,0.00022191,2]
[402030372,1768487468477,-500.0,0.00022191,2]
[402030373,1768487468486,-500.0,0.00022191,2]
[402030374,1768487468495,-500.0,0.00022191,2]
[402030375,1768487468504,-500.0,0.00022191,2]
[402030376,1768487468514,-2130.18,0.00022191,2]
[402030377,1768487468523,-3208.73,0.00022191,2]
[402030378,1768487468532,-930.4,0.00022191,2]
[402030379,1768487468542,-500.0,0.00022191,2]
[402030380,1768487468551,-7250.03,0.00022191,2]
[402030381,1768487468562,-924.16,0.00022191,2]
[402030382,1768487468571,-2017.34,0.00022191,2]
[402030383,1768487468580,-500.0,0.00022191,2]
[402030384,1768487468589,-500.0,0.00022191,2]
[402030385,1768487468598,-541.29745064,0.00022191,2]
[402030386,1768487468607,-500.0,0.00022191,2]
[402030387,1768487468616,-500.0,0.00022191,2]
[402030388,1768487468625,-500.0,0.00022191,2]
[402030389,1768487468634,-754.42,0.00022191,2]
[402030390,1768487468643,-500.0,0.00022191,2]
[402030391,1768487468653,-409.16326506,0.00022191,2]
[402030392,1768487468662,-1614.45,0.00022191,2]
[402030393,1768487468672,-500.0,0.00022191,2]
[402030394,1768487468681,-583.63,0.00022191,2]
[402030395,1768487468690,-500.0,0.00022191,2]
[402030396,1768487468700,-500.0,0.00022191,2]
[402030397,1768487468709,-690.02,0.00022191,2]
[402030398,1768487468719,-1059.37,0.00022191,2]
[402030399,1768487468728,-500.0,0.00022191,2]
[402030400,1768487468737,-779.65,0.00022191,2]
[402030401,1768487468747,-1210.81,0.00022191,2]
[402030402,1768487468756,-500.0,0.00022191,2]
[402030403,1768487468766,-1238.32,0.00022191,2]
[402030404,1768487468775,-2325.64,0.00022191,2]
[402030405,1768487468783,-500.0,0.00022191,2]
[402030406,1768487468792,-500.0,0.00022191,2]
[402030407,1768487468801,-500.0,0.00022191,2]
[402030408,1768487468813,-500.0,0.00022191,2]
[402030409,1768487468822,-500.0,0.00022191,2]
[402030410,1768487468832,-500.0,0.00022191,2]
[402030411,1768487468841,-500.0,0.00022191,2]
[402030412,1768487468850,-747.69,0.00022191,2]
[402030413,1768487468859,-500.0,0.00022191,2]
[402030414,1768487468868,-500.0,0.00022191,2]
[402030415,1768487468876,-500.0,0.00022191,2]
[402030416,1768487468885,-644.04,0.00022191,2]
[402030417,1768487468894,-500.0,0.00022191,2]
[402030418,1768487468903,-500.0,0.00022191,2]
[402030419,1768487468912,-900.81,0.00022191,2]
[402030420,1768487468921,-922.21,0.00022191,2]
[402030421,1768487468930,-500.0,0.00022191,2]
[402030422,1768487468939,-1804.12,0.00022191,2]
[402030423,1768487468948,-642.11056682,0.00022191,2]
[402030424,1768487468958,-500.0,0.00022191,2]
[402030425,1768487468969,-500.0,0.00022191,2]
[402030426,1768487468978,-500.0,0.00022191,2]
[402030427,1768487468987,-579.73759066,0.00022191,2]
[402030428,1768487468996,-500.0,0.00022191,2]
[402030429,1768487469006,-1545.96,0.00022191,2]
[402030430,1768487469015,-500.0,0.00022191,2]
[402030431,1768487469025,-500.0,0.00022191,2]
[402030432,1768487469034,-500.0,0.00022191,2]
[402030433,1768487469043,-500.0,0.00022191,2]
[402030434,1768487469053,-500.0,0.00022191,2]
[402030435,1768487469065,-1941.59,0.00022191,2]
[402030436,1768487469075,-500.0,0.00022191,2]
[402030437,1768487469084,-500.0,0.00022191,2]
[402030438,1768487469095,-715.06,0.00022191,2]
[402030439,1768487469104,-500.0,0.00022191,2]
[402030440,1768487469114,-3110.44,0.00022191,2]
[402030441,1768487469124,-588.76,0.00022191,2]
[402030442,1768487469134,-1128.48,0.00022191,2]
[402030443,1768487469143,-1681.67,0.00022191,2]
[402030444,1768487469153,-655.09,0.00022191,2]
[402030445,1768487469163,-500.0,0.00022191,2]
[402030446,1768487469173,-1099.54,0.00022191,2]
[402030447,1768487469188,-500.0,0.00022191,2]
[402030448,1768487469208,-557.65,0.00022191,2]
[402030449,1768487469228,-1284.29,0.00022191,2]
[402030450,1768487469250,-1533.51,0.00022191,2]
[402030451,1768487469268,-808.26,0.00022191,2]
[402030452,1768487469278,-500.0,0.00022191,2]
[402030453,1768487469288,-525.85,0.00022191,2]
[402030454,1768487469299,-500.0,0.00022191,2]
[402030455,1768487469310,-500.0,0.00022191,2]
[402030456,1768487469331,-2771.44,0.00022191,2]
[402030457,1768487469343,-500.0,0.00022191,2]
[402030458,1768487469354,-500.0,0.00022191,2]
[402030459,1768487469363,-1423.97,0.00022191,2]
[402030460,1768487469373,-500.0,0.00022191,2]
[402030461,1768487469384,-557.09,0.00022191,2]
[402030462,1768487469394,-500.0,0.00022191,2]
[402030463,1768487469412,-500.0,0.00022191,2]
[402030464,1768487469428,-1233.03,0.00022191,2]
[402030465,1768487469440,-1167.61,0.00022191,2]
[402030466,1768487469451,-500.0,0.00022191,2]
[402030467,1768487469460,-500.0,0.00022191,2]
[402030468,1768487469472,-500.0,0.00022191,2]
[402030469,1768487469483,-1534.96,0.00022191,2]
[402030470,1768487469495,-500.0,0.00022191,2]